bitfinex/quotes_ETHUSD_20240822
["timestamp","ask_amount","ask_price","bid_price","bid_amount"]
[1724301155660,0.44098967,2623.1,2622.7,2.28765]
[1724301156835,0.44098967,2623.1,2622.8,2.28758]
[1724301157035,1.08034764,2623.1,2622.8,2.28758]
[1724301157235,1.08034764,2623.1,2622.9,2.28753]
[1724301160994,1.08034764,2623.1,2622.9,4.54199]
[1724301161200,0.44098967,2623.1,2622.9,4.54199]
[1724301161884,0.44098967,2623.1,2623.0,2.28745]
[1724301162085,0.44098967,2623.1,2623.0,7.055]
[1724301162256,0.04213121,2623.1,2623.0,7.055]
[1724301162455,0.04213121,2623.1,2623.0,7.8913]
[1724301164584,0.04213121,2623.1,2623.0,13.17875]
[1724301165400,0.04213121,2623.1,2623.0,10.8913]
[1724301165997,0.04213121,2623.1,2623.0,10.055]
[1724301169890,0.04213121,2623.1,2623.0,12.34245]
[1724301170512,0.04213121,2623.1,2623.0,10.055]
[1724301172120,0.04213121,2623.1,2623.0,12.34245]
[1724301172289,0.04213121,2623.1,2623.0,10.055]
[1724301173181,0.04213121,2623.1,2623.0,13.707496]
[1724301182216,0.04213121,2623.1,2623.0,12.34245]
[1724301191811,0.04213121,2623.1,2623.0,14.6299]
[1724301192135,0.04213121,2623.1,2623.0,17.94358811]
[1724301192372,0.00344634,2623.1,2623.0,19.21208578]
[1724301192566,0.04033396,2623.1,2623.0,21.38291476]
[1724301193967,0.04033396,2623.1,2623.0,17.14679449]
[1724301194122,0.04033396,2623.1,2623.0,19.13502496]
[1724301194319,0.04033396,2623.1,2623.0,21.42247496]
[1724301194952,0.04033396,2623.1,2623.0,21.89954092]
[1724301195139,0.04033396,2623.1,2623.0,21.42247496]
[1724301195630,0.04033396,2623.1,2623.0,21.89953479]
[1724301195825,0.04033396,2623.1,2623.0,21.89934807]
[1724301197364,0.04033396,2623.1,2623.0,21.42228824]
[1724301197526,0.04033396,2623.1,2623.0,21.89935353]
[1724301197736,0.04033396,2623.1,2623.0,22.69080019]
[1724301198245,0.04033396,2623.1,2623.0,19.61190353]
[1724301198425,0.04033396,2623.1,2623.0,21.42228824]
[1724301199572,0.04033396,2623.1,2623.0,22.69079491]
[1724301199725,0.04033396,2623.1,2623.0,24.97954856]
[1724301199946,0.005,2623.4,2623.1,11.63354]
[1724301200146,0.005,2623.4,2623.1,24.04207997]
[1724301200406,0.00081813,2623.2,2623.1,27.16099844]
[1724301200547,0.00081813,2623.2,2623.1,23.84743918]
[1724301200750,0.00081813,2623.2,2623.1,28.01922606]
[1724301200956,1.4342504,2624.6,2623.5,2.4841]
[1724301200957,7.44,2624.3,2623.5,2.4841]
[1724301201275,7.44,2626.6,2625.0,1.2505]
[1724301201495,2.28397,2627.1,2626.6,1.2505]
[1724301201665,0.1262504,2627.2,2626.9,2.28402]
[1724301201867,0.1262504,2627.2,2627.0,1.308]
[1724301202192,0.1262504,2627.2,2626.0,1.2505]
[1724301202193,0.1262504,2627.2,2626.2,0.79085427]
[1724301202359,0.1262504,2627.2,2626.6,1.308]
[1724301202565,0.1262504,2627.2,2627.1,4.56776]
[1724301202801,0.1262504,2627.2,2626.4,3.0]
[1724301203102,0.1262504,2627.2,2627.0,2.28395]
[1724301203263,0.1262504,2627.2,2626.7,2.28422]
[1724301203709,0.1262504,2627.2,2626.6,3.0]
[1724301204000,0.07668623,2627.1,2626.7,2.28415]
[1724301204198,2.33668623,2627.0,2626.4,2.28442]
[1724301204508,0.23366862,2626.9,2626.4,2.28442]
[1724301204650,0.07668623,2626.8,2626.4,2.28442]
[1724301206303,0.07668623,2626.8,2626.1,2.28474]
[1724301206463,0.23366862,2626.9,2626.2,2.28466]
[1724301206650,0.23366862,2626.9,2626.3,2.28457]
[1724301207104,0.23366862,2626.9,2626.1,2.28473]
[1724301207308,0.07668623,2626.8,2626.2,2.28466]
[1724301207452,0.23366862,2626.9,2626.2,2.28466]
[1724301208797,0.07668623,2626.8,2626.0,2.28482]
[1724301209010,0.07668623,2626.7,2626.0,2.28482]
[1724301209168,2.2932,2626.6,2626.0,2.28482]
[1724301209378,0.07668623,2626.5,2626.1,2.28474]
[1724301209683,2.2932,2626.6,2626.5,2.2844]
[1724301209871,2.2932,2626.6,2626.3,2.28456]
[1724301210048,2.2932,2626.6,2626.4,2.28446]
[1724301210490,2.2932,2626.6,2626.4,2.28449]
[1724301210701,2.2932,2626.6,2626.2,2.28463]
[1724301210851,0.22932,2626.5,2626.1,2.28473]
[1724301211277,0.30600623,2626.5,2625.9,2.28493]
[1724301211482,0.30600623,2626.5,2625.7,2.28508]
[1724301212032,0.30600623,2626.5,2625.9,2.28493]
[1724301212327,2.59042623,2626.5,2625.7,2.28508]
[1724301212476,0.48836262,2626.4,2625.8,2.285]
[1724301212680,0.07668623,2626.3,2625.8,2.285]
[1724301212982,0.48836262,2626.4,2625.8,2.285]
[1724301213182,0.07668623,2626.2,2625.8,2.285]
[1724301213741,2.2932,2626.6,2626.5,2.2844]
[1724301213917,2.2932,2626.6,2626.4,2.28448]
[1724301214230,2.2932,2626.6,2626.5,2.2844]
[1724301214603,2.2932,2626.6,2626.3,2.28457]
[1724301215189,2.2932,2626.6,2626.0,2.28483]
[1724301215422,0.30600623,2626.5,2625.8,2.28498]
[1724301215692,0.30600623,2626.5,2625.7,2.28507]
[1724301215693,0.22932,2626.5,2626.3,2.28458]
[1724301215990,4.69203,2627.0,2625.5,3.0]
[1724301215991,5.28408,2626.9,2626.2,2.28466]
[1724301216191,3.053283,2626.9,2626.1,2.28474]
[1724301216397,2.408,2626.4,2625.7,2.2851]
[1724301216706,0.54592623,2626.3,2625.7,2.2851]
[1724301216911,0.07668623,2626.2,2625.5,2.28527]
[1724301217312,2.28468,2626.2,2625.5,2.28527]
[1724301217527,2.36143623,2626.1,2625.5,2.28527]
[1724301217853,2.28512,2625.7,2625.1,2.28558]
[1724301218059,2.28512,2625.7,2624.9,2.28578]
[1724301218060,2.36194623,2625.6,2624.9,2.28578]
[1724301218203,2.36194623,2625.6,2624.5,0.3818]
[1724301218204,0.457014,2625.6,2625.3,2.28542]
[1724301218697,0.457014,2625.6,2625.1,2.2856]
[1724301218810,0.2865014,2625.5,2625.1,2.2856]
[1724301219525,0.07668623,2625.4,2624.9,2.28576]
[1724301220126,0.2865014,2625.5,2625.1,2.28562]
[1724301220807,0.2865014,2625.5,2625.3,2.28541]
[1724301221350,0.2865014,2625.5,2625.2,2.28552]
[1724301222106,0.36318763,2625.5,2625.2,2.28549]
[1724301223215,0.2865014,2625.5,2625.2,2.28549]
[1724301224158,0.2865014,2625.5,2625.0,2.28571]
[1724301224445,0.2865014,2625.5,2625.1,2.28561]
[1724301224649,0.2865014,2625.5,2625.0,4.57136]
[1724301224857,0.2865014,2625.5,2625.1,2.28557]
[1724301226407,0.2865014,2625.5,2625.3,2.28539]
[1724301227523,0.2865014,2625.5,2625.1,2.28557]
[1724301227839,0.2865014,2625.5,2625.1,4.57114]
[1724301228040,0.2865014,2625.5,2625.1,2.28557]
[1724301228823,0.2865014,2625.5,2625.1,4.57114]
[1724301229154,2.5718114,2625.5,2624.9,2.28573]
[1724301229353,0.33386737,2625.4,2624.9,4.57147]
[1724301229558,0.25718114,2625.4,2625.1,2.28556]
[1724301229764,0.07668623,2625.4,2624.9,2.28573]
[1724301229924,2.36205623,2625.4,2624.9,2.28573]
[1724301230132,0.07668623,2625.4,2624.9,2.28573]
[1724301230336,2.5717814,2625.5,2624.9,2.28573]
[1724301230642,0.33386437,2625.4,2624.9,2.28573]
[1724301230959,0.25717814,2625.4,2624.9,2.28573]
[1724301231129,0.25717814,2625.4,2625.0,2.28566]
[1724301231332,0.2865014,2625.5,2625.0,2.28566]
[1724301231536,0.2865014,2625.5,2625.1,2.28557]
[1724301231846,0.2865014,2625.5,2625.3,2.28542]
[1724301232622,0.2865014,2625.5,2625.1,2.28554]
[1724301233022,0.2865014,2625.5,2625.1,2.2856]
[1724301235686,0.2865014,2625.5,2625.1,4.57117]
[1724301235890,0.2865014,2625.5,2625.1,4.57114]
[1724301236187,0.2865014,2625.5,2625.1,2.28557]
[1724301236685,0.07668623,2625.4,2625.0,2.28569]
[1724301236892,2.36205623,2625.4,2624.9,2.28575]
[1724301237201,0.26485576,2625.3,2625.0,2.28571]
[1724301237351,0.2865014,2625.5,2625.1,2.28561]
[1724301237788,0.07668623,2625.4,2624.6,3.0]
[1724301238089,0.26484676,2625.4,2625.0,2.2857]
[1724301238958,0.26484676,2625.4,2625.0,4.5714]
[1724301239340,0.26484676,2625.4,2625.0,4.57136]
[1724301239546,0.26484676,2625.4,2625.1,2.28561]
[1724301239844,0.2865014,2625.5,2625.1,2.28561]
[1724301240751,0.2865014,2625.5,2625.2,2.28553]
[1724301241172,0.2865014,2625.5,2625.4,2.28536]
[1724301241566,0.2865014,2625.5,2625.3,2.28544]
[1724301241768,2.408,2625.7,2624.7,2.3069]
[1724301241964,2.408,2625.7,2625.6,2.28519]
[1724301243760,0.39846752,2625.8,2625.7,2.2851]
[1724301244093,7.44,2626.9,2625.6,2.28515]
[1724301244094,2.3023,2626.4,2625.6,2.28515]
[1724301244273,0.39838528,2626.3,2626.1,2.28474]
[1724301244469,0.39838528,2626.3,2625.8,2.28498]
[1724301244674,0.89690081,2626.3,2625.8,2.28498]
[1724301244874,0.89690081,2626.3,2625.8,2.28496]
[1724301245090,0.89690081,2626.3,2626.0,2.28483]
[1724301245770,0.39838528,2626.3,2626.2,2.28466]
[1724301246191,2.4561,2626.7,2626.2,2.28466]
[1724301246392,2.8544383,2626.7,2626.1,2.28473]
[1724301246557,0.35984383,2626.6,2626.1,2.28473]
[1724301248413,0.35984383,2626.6,2626.1,4.56942]
[1724301248599,0.35984383,2626.6,2626.1,2.28469]
[1724301249438,2.28441,2626.5,2625.9,2.28485]
[1724301249747,2.2529,2626.2,2625.7,2.28503]
[1724301250548,4.53758,2626.2,2625.5,2.28522]
[1724301250862,4.53758,2626.2,2625.5,4.57044]
[1724301251014,4.53758,2626.2,2625.6,2.28518]
[1724301251337,0.682217,2626.1,2625.6,2.28518]
[1724301251507,0.07668623,2626.0,2625.4,2.28531]
[1724301251696,2.36160623,2626.0,2625.4,2.28531]
[1724301252347,2.28491,2626.0,2625.4,2.28531]
[1724301252497,0.2967127,2625.9,2625.4,2.28531]
[1724301252720,0.2967127,2625.9,2625.4,4.57061]
[1724301252961,0.2967127,2625.9,2625.4,2.2853]
[1724301253161,0.2967127,2625.9,2625.5,2.28525]
[1724301253415,6.82234,2626.2,2625.5,2.28525]
[1724301253416,2.28476,2626.1,2625.5,2.28525]
[1724301254061,2.2529,2626.2,2625.0,2.2874]
[1724301254364,2.2529,2626.2,2625.8,2.28494]
[1724301254529,2.2529,2626.2,2625.9,2.28492]
[1724301254734,2.2529,2626.2,2625.8,2.28494]
[1724301254966,2.2529,2626.2,2626.0,2.28483]
[1724301255818,0.3983383,2626.7,2626.4,2.28441]
[1724301256628,0.3983383,2626.7,2626.5,2.28439]
[1724301257062,0.3983383,2626.7,2626.4,2.28441]
[1724301257764,0.66657813,2626.7,2626.3,2.28458]
[1724301259169,0.66657813,2626.7,2626.4,2.28447]
[1724301259473,0.3983383,2626.7,2626.4,2.28447]
[1724301260464,0.3983383,2626.7,2626.2,4.56921]
[1724301260665,2.3745,2626.6,2626.2,4.5692]
[1724301260868,2.3745,2626.6,2626.2,2.28459]
[1724301261054,0.3983383,2626.7,2626.2,2.28459]
[1724301261253,0.3983383,2626.7,2626.4,2.28443]
[1724301261577,0.67460213,2626.7,2626.4,2.28443]
[1724301262273,0.67460213,2626.7,2626.3,2.28458]
[1724301263576,0.67460213,2626.7,2626.2,2.28461]
[1724301264163,0.29587921,2626.6,2626.2,2.28461]
[1724301264334,2.2589,2626.5,2626.0,2.2848]
[1724301264530,2.2589,2626.5,2626.0,4.56959]
[1724301264956,2.2589,2626.5,2626.0,2.28478]
[1724301265156,2.36122623,2626.4,2625.8,2.28497]
[1724301265469,0.46201262,2626.3,2625.8,2.28497]
[1724301265674,2.484,2625.9,2625.2,2.2855]
[1724301265877,2.36175623,2625.8,2625.2,2.2855]
[1724301266028,2.28519,2625.6,2625.0,2.28564]
[1724301266227,0.56127385,2625.5,2625.0,2.28564]
[1724301266682,0.48458762,2625.5,2625.0,2.28564]
[1724301266981,0.56127385,2625.5,2625.0,2.28564]
[1724301267145,0.48458762,2625.5,2625.0,2.28564]
[1724301268340,0.48458762,2625.5,2624.6,2.28598]
[1724301268341,4.7695,2625.3,2624.6,2.28598]
[1724301269149,4.84628623,2625.2,2624.6,2.28598]
[1724301270288,4.84628623,2625.2,2624.0,2.28656]
[1724301270289,2.484,2624.7,2624.2,2.28632]
[1724301270491,0.476989,2624.6,2624.2,2.28632]
[1724301272692,0.55367523,2624.6,2624.2,2.28632]
[1724301273797,0.476989,2624.6,2624.2,2.28632]
[1724301273991,0.55367523,2624.6,2624.2,2.28632]
[1724301274698,0.476989,2624.6,2624.2,2.28632]
[1724301274862,0.2960989,2624.5,2624.2,2.28632]
[1724301276012,2.4285,2624.3,2623.8,2.28669]
[1724301276302,0.07668623,2624.2,2623.8,2.28669]
[1724301276505,0.07668623,2624.2,2623.8,4.57338]
[1724301276664,0.07668623,2624.2,2623.8,2.28669]
[1724301277012,0.07668623,2624.2,2623.7,2.28682]
[1724301277314,0.32720485,2624.2,2623.7,2.28682]
[1724301277804,0.32720485,2624.2,2623.6,2.28687]
[1724301277960,0.25051862,2624.2,2623.8,2.28675]
[1724301278505,0.25051862,2624.2,2623.8,2.28669]
[1724301278708,0.25051862,2624.2,2623.5,2.28702]
[1724301278948,0.25051862,2624.2,2623.9,2.2866]
[1724301280080,2.4285,2624.3,2623.7,2.28683]
[1724301280297,7.44,2624.4,2624.2,2.28633]
[1724301280612,5.2906,2624.7,2624.2,2.28633]
[1724301280786,0.39816199,2624.4,2624.2,2.28633]
[1724301280981,2.2906,2624.3,2624.0,2.28651]
[1724301281205,2.2906,2624.3,2624.1,2.28641]
[1724301281411,2.2906,2624.3,2624.2,2.28641]
[1724301281730,0.39816199,2624.4,2624.3,2.28632]
[1724301281893,0.39816199,2624.4,2624.1,4.57293]
[1724301282232,0.39816199,2624.4,2624.1,4.57288]
[1724301282595,0.39816199,2624.4,2624.1,2.28644]
[1724301282796,0.39816199,2624.4,2624.3,2.28632]
[1724301282996,0.39816199,2624.4,2624.3,4.57264]
[1724301283517,0.39816199,2624.4,2624.3,2.28632]
[1724301284230,0.39816199,2624.4,2624.3,4.57264]
[1724301284437,0.39816199,2624.4,2624.3,7.787952]
[1724301284589,2.3198,2625.3,2624.9,2.28578]
[1724301284930,0.3981509,2625.1,2624.7,4.57185]
[1724301285130,0.3981509,2625.1,2624.0,3.0]
[1724301285131,0.66994599,2625.1,2624.5,4.57221]
[1724301285315,0.66994599,2625.1,2624.6,2.286]
[1724301285515,0.2955536,2625.0,2624.6,2.286]
[1724301285886,2.3433,2624.9,2624.3,2.2863]
[1724301286197,2.36262623,2624.8,2624.1,2.28642]
[1724301286397,0.07668623,2624.7,2624.2,2.28641]
[1724301286599,2.3433,2624.6,2624.2,2.28641]
[1724301286793,2.3433,2624.6,2624.1,4.57286]
[1724301286994,0.07668623,2624.5,2624.1,2.28642]
[1724301287232,3.06887716,2624.6,2624.1,2.28642]
[1724301288219,0.07668623,2624.5,2623.9,2.28663]
[1724301288387,4.71965,2624.4,2623.8,2.28675]
[1724301290549,0.07668623,2624.3,2623.8,2.28675]
[1724301290693,4.71965,2624.4,2623.7,2.28679]
[1724301291017,0.50284903,2624.3,2623.8,2.28674]
[1724301291596,0.50284903,2624.3,2623.9,2.28666]
[1724301291993,0.50284903,2624.3,2624.0,2.28658]
[1724301292697,0.50284903,2624.3,2624.1,2.28649]
[1724301293124,0.50284903,2624.3,2623.9,2.28662]
[1724301293319,0.50284903,2624.3,2624.0,2.28653]
[1724301294241,0.50284903,2624.3,2623.9,2.28662]
[1724301294539,0.2936249,2624.2,2623.9,2.28662]
[1724301295039,0.37031113,2624.2,2623.7,2.28677]
[1724301295205,0.37031113,2624.2,2623.7,4.57355]
[1724301295407,2.2657,2624.1,2623.8,2.28675]
[1724301295636,2.57191739,2624.1,2623.8,2.28675]
[1724301295939,2.2657,2624.1,2623.9,2.28664]
[1724301296141,2.2657,2624.1,2623.9,2.28662]
[1724301296306,2.2657,2624.1,2623.9,2.28661]
[1724301297248,2.2657,2624.1,2623.9,4.57323]
[1724301298004,2.2657,2624.1,2624.0,2.28658]
[1724301298442,2.3917,2624.5,2624.1,2.28648]
[1724301298647,3.364297,2624.5,2624.1,2.28648]
[1724301299127,3.364297,2624.5,2623.9,4.57322]
[1724301299441,2.28629,2624.4,2623.9,2.28667]
[1724301299642,0.5650587,2624.3,2623.7,2.28679]
[1724301299847,0.5650587,2624.3,2623.9,2.28666]
[1724301300000,0.96313566,2624.3,2623.9,2.28666]
[1724301300701,0.96313566,2624.3,2623.9,4.57323]
[1724301301041,0.96313566,2624.3,2623.9,2.28664]
[1724301301197,0.07668623,2624.2,2623.3,2.28717]
[1724301301402,2.2982,2624.1,2623.6,2.28686]
[1724301301649,2.2982,2624.1,2623.7,2.28684]
[1724301303530,2.2982,2624.1,2623.1,4.78373]
[1724301303531,2.36332623,2624.0,2623.3,2.28714]
[1724301303741,0.33976705,2624.0,2623.3,2.28713]
[1724301303901,0.33976705,2624.0,2623.5,2.28699]
[1724301304247,2.62637705,2624.0,2623.3,4.57425]
[1724301304410,0.4924577,2623.9,2623.3,4.57425]
[1724301304747,0.07668623,2623.8,2623.3,4.57425]
[1724301305062,0.07668623,2623.8,2623.4,2.28708]
[1724301305515,0.4924577,2623.9,2623.4,2.28708]
[1724301306499,0.07668623,2623.8,2623.3,2.28712]
[1724301306700,2.51868623,2623.7,2623.1,2.28733]
[1724301306941,0.07668623,2623.6,2622.9,2.28747]
[1724301307139,2.28711,2623.4,2622.7,2.28768]
[1724301307444,0.3597432,2623.6,2622.9,2.28752]
[1724301307445,2.57005697,2623.6,2622.9,2.28752]
[1724301307645,0.8146057,2623.5,2622.9,2.28752]
[1724301307829,3.1016257,2623.5,2622.9,2.28752]
[1724301308020,2.51868623,2623.4,2622.9,2.28752]
[1724301308344,2.51868623,2623.4,2623.1,2.28736]
[1724301308345,2.442,2623.4,2623.1,2.28736]
[1724301308500,2.442,2623.4,2622.9,2.28752]
[1724301308501,2.442,2623.4,2622.9,4.57499]
[1724301308707,2.79596627,2623.4,2622.9,2.28747]
[1724301308905,2.79596627,2623.4,2622.7,2.28769]
[1724301308906,0.07668623,2623.3,2622.7,2.28769]
[1724301309342,5.08314627,2623.4,2622.8,2.28757]
[1724301309562,5.08314627,2623.4,2622.7,2.28769]
[1724301309563,2.79596627,2623.4,2622.9,2.28753]
[1724301311274,2.442,2623.4,2623.0,2.2874]
[1724301311773,2.442,2623.4,2622.6,2.28776]
[1724301311774,4.72911,2623.4,2622.6,2.28776]
[1724301311950,4.72911,2623.4,2622.7,2.28765]
[1724301312259,4.72911,2623.4,2622.6,2.28776]
[1724301312260,4.72911,2623.4,2622.8,2.28762]
[1724301312465,3.143605,2623.4,2622.9,2.28748]
[1724301312997,3.143605,2623.4,2622.8,2.28755]
[1724301313833,3.143605,2623.4,2623.0,2.28744]
[1724301315375,0.39802819,2623.3,2622.8,4.57511]
[1724301315587,0.39802819,2623.3,2622.9,2.28749]
[1724301317076,0.39802819,2623.3,2623.0,2.28744]
[1724301319159,0.75219151,2623.3,2623.0,2.28744]
[1724301320269,0.39802819,2623.3,2623.0,2.28744]
[1724301321773,0.39802819,2623.3,2623.2,2.28728]
[1724301321979,0.39802819,2623.3,2623.1,2.28736]
[1724301322179,0.39802819,2623.3,2623.1,2.28731]
[1724301322882,2.28735,2623.2,2622.6,2.28774]
[1724301323035,2.57135282,2623.2,2622.6,2.28774]
[1724301323234,0.39802819,2623.3,2623.0,2.2874]
[1724301323482,0.39802819,2623.3,2623.2,2.28728]
[1724301323988,0.39802819,2623.3,2623.0,4.57478]
[1724301324212,0.39802819,2623.3,2623.1,2.28731]
[1724301324779,0.39802819,2623.3,2623.0,2.28738]
[1724301325601,0.68203101,2623.3,2622.8,2.28759]
[1724301325801,0.68203101,2623.3,2622.8,2.28757]
[1724301326319,2.4146,2623.2,2622.6,2.28774]
[1724301326521,2.7270031,2623.2,2622.8,2.28761]
[1724301326726,2.7270031,2623.2,2622.3,3.0]
[1724301326727,0.39802819,2623.3,2623.2,2.28728]
[1724301327192,0.39802819,2623.3,2623.2,4.57456]
[1724301327367,0.39802819,2623.3,2623.2,2.28728]
[1724301327702,0.39802819,2623.3,2623.2,4.57456]
[1724301327900,0.39802819,2623.3,2623.2,5.260758]
[1724301330417,0.39802819,2623.3,2623.2,4.57456]
[1724301332398,0.39802819,2623.3,2623.2,6.86184]
[1724301333209,0.39802819,2623.3,2623.2,4.57456]
[1724301333606,0.39802819,2623.3,2623.2,6.86184]
[1724301334671,0.39802819,2623.3,2623.2,4.57456]
[1724301334871,0.39802819,2623.3,2623.2,5.260747]
[1724301340222,0.39802819,2623.3,2623.2,7.548027]
[1724301340421,0.39802819,2623.3,2623.2,10.548027]
[1724301344107,0.39802819,2623.3,2623.2,11.87352827]
[1724301344402,0.39802819,2623.3,2623.2,10.548027]
[1724301344606,0.39802819,2623.3,2623.2,11.87353318]
[1724301346008,0.39802819,2623.3,2623.2,13.86179246]
[1724301346182,0.03241312,2623.3,2623.2,11.87353318]
[1724301346385,2.4533,2624.1,2623.9,2.28661]
[1724301346803,0.09835647,2624.0,2623.7,2.28677]
[1724301346984,0.09835647,2624.0,2623.8,2.2867]
[1724301348623,1.307,2623.9,2623.8,2.2867]
[1724301348997,1.40535617,2623.9,2623.7,2.28677]
[1724301349197,2.3679,2623.8,2623.7,2.28677]
[1724301349623,2.46620362,2623.8,2623.7,2.28677]
[1724301349829,2.84352398,2623.8,2623.5,2.28695]
[1724301349984,1.307,2623.6,2623.5,2.28695]
[1724301350396,1.40522209,2623.6,2623.5,2.28695]
[1724301352530,0.09822209,2623.6,2623.5,2.28695]
[1724301353127,0.0982433,2623.6,2623.5,2.28695]
[1724301353325,2.74522036,2623.8,2623.5,2.28695]
[1724301353528,0.09825423,2623.6,2623.5,2.28695]
[1724301353730,2.74522036,2623.8,2623.5,2.28695]
[1724301353880,0.09825423,2623.6,2623.5,2.28695]
[1724301354226,2.74522036,2623.8,2623.5,2.28695]
[1724301354426,0.09825423,2623.6,2623.5,2.28695]
[1724301354730,0.0982433,2623.6,2623.5,2.28695]
[1724301355132,2.74522036,2623.8,2623.5,2.28695]
[1724301355330,0.09825423,2623.6,2623.5,2.28695]
[1724301355530,2.74522036,2623.8,2623.5,2.28695]
[1724301355732,0.09825423,2623.6,2623.5,2.28695]
[1724301356031,2.74522036,2623.8,2623.5,2.28695]
[1724301356204,0.09825423,2623.6,2623.3,4.57426]
[1724301356405,0.27452204,2623.7,2623.3,4.57426]
[1724301356619,0.09821259,2623.5,2623.4,2.2871]
[1724301356821,0.35120827,2623.7,2623.4,2.2871]
[1724301357026,0.09820166,2623.5,2623.4,2.2871]
[1724301357338,0.09821259,2623.5,2623.4,2.2871]
[1724301357489,0.27452204,2623.7,2623.4,2.2871]
[1724301357695,0.09825423,2623.6,2623.3,2.28713]
[1724301357900,2.4317,2623.5,2623.2,2.28727]
[1724301358099,0.09817095,2623.4,2623.1,2.28735]
[1724301358339,0.38310487,2623.4,2623.2,2.28727]
[1724301358520,0.38310487,2623.4,2623.1,2.2873]
[1724301358723,0.38310487,2623.4,2623.2,2.28723]
[1724301358923,0.38310487,2623.4,2622.6,1.988683]
[1724301358924,0.09817095,2623.4,2622.6,1.988683]
[1724301359108,0.09817095,2623.4,2623.3,2.28719]
[1724301361690,0.09817095,2623.4,2623.1,2.28729]
[1724301361846,0.09817095,2623.4,2623.2,2.28726]
[1724301361999,0.49608246,2623.4,2623.2,2.28726]
[1724301363028,0.49608246,2623.4,2623.3,2.28719]
[1724301364703,0.09817095,2623.4,2623.1,4.57457]
[1724301364902,0.09817095,2623.4,2623.1,2.28728]
[1724301365113,0.09817095,2623.4,2622.9,2.28751]
[1724301365114,0.35115805,2623.4,2622.9,4.57497]
[1724301365314,0.35115805,2623.4,2622.9,2.28746]
[1724301366034,0.35115805,2623.4,2623.1,2.28735]
[1724301366635,0.35115805,2623.4,2623.1,2.28732]
[1724301367173,0.09817095,2623.4,2623.1,2.28732]
[1724301368472,0.09817095,2623.4,2623.3,2.28719]
[1724301370169,0.09817095,2623.4,2623.2,2.28726]
[1724301370669,0.09817095,2623.4,2623.1,4.57459]
[1724301370883,0.09817095,2623.4,2623.1,2.28729]
[1724301371471,0.35115805,2623.4,2623.1,2.28729]
[1724301372973,0.09817095,2623.4,2623.1,2.28729]
[1724301373124,0.09817095,2623.4,2623.3,2.28719]
[1724301374651,0.09817095,2623.4,2623.2,2.28725]
[1724301374997,0.49604515,2623.4,2623.2,2.28723]
[1724301375696,0.49604515,2623.4,2623.3,2.28719]
[1724301377117,0.49604515,2623.4,2623.2,2.28723]
[1724301377692,0.49604515,2623.4,2623.2,4.57445]
[1724301377890,0.49604515,2623.4,2623.2,2.28722]
[1724301379503,0.49604515,2623.4,2623.1,2.28735]
[1724301379720,0.91961967,2623.4,2623.1,2.28735]
[1724301380553,0.9963059,2623.4,2623.0,2.28739]
[1724301380755,1.308,2623.3,2622.8,4.57513]
[1724301381039,2.3167,2623.2,2622.8,2.28755]
[1724301381342,2.49110018,2623.2,2622.8,2.28755]
[1724301381508,1.67047,2623.1,2622.6,2.28775]
[1724301381840,0.1743278,2623.0,2622.6,2.28775]
[1724301382046,0.1743278,2623.0,2622.7,2.2877]
[1724301382389,0.09764157,2623.0,2622.7,2.2877]
[1724301387148,0.09764157,2623.0,2622.6,2.28775]
[1724301387764,0.1743278,2623.0,2622.6,2.28775]
[1724301388084,0.09764157,2623.0,2622.7,2.28771]
[1724301390169,0.39783181,2622.9,2622.7,2.28771]
[1724301390666,0.09717697,2622.8,2622.7,2.28771]
[1724301392913,0.09717697,2622.8,2622.7,8.780966]
[1724301393219,0.09717697,2622.8,2622.7,12.39443252]
[1724301393360,0.09717697,2622.8,2622.7,14.38305657]
[1724301396619,0.09717697,2622.8,2622.7,18.17391084]
[1724301396974,0.09717697,2622.8,2622.7,17.38305657]
[1724301397171,0.09717697,2622.8,2622.7,18.17391084]
[1724301397620,0.00791409,2622.8,2622.7,18.17391084]
[1724301397835,0.09433302,2622.8,2622.7,18.57072744]
[1724301398233,0.39783181,2622.9,2622.8,6.86289]
[1724301398392,0.39783181,2622.9,2622.8,16.75882912]
[1724301399022,0.39783181,2622.9,2622.8,16.7584042]
[1724301399239,7.44,2623.9,2623.8,2.28675]
[1724301399415,2.2906,2624.0,2623.9,2.28667]
[1724301399628,0.09496737,2623.9,2623.7,2.28677]
[1724301399923,0.09520593,2623.8,2623.7,2.28677]
[1724301400230,2.68848584,2624.0,2623.8,2.28674]
[1724301402490,2.68848584,2624.0,2623.9,2.28667]
[1724301402894,2.68848584,2624.0,2623.8,4.57343]
[1724301403711,2.68848584,2624.0,2623.8,2.28669]
[1724301405352,0.09532103,2623.9,2623.8,2.28669]
[1724301410623,0.09532103,2623.9,2623.8,4.57344]
[1724301410970,0.09532103,2623.9,2623.8,5.030784]
[1724301414423,0.09532103,2623.9,2623.8,4.57344]
[1724301421519,2.41662103,2623.9,2623.8,2.28669]
[1724301422290,2.41662103,2623.9,2623.4,2.28709]
[1724301422291,1.40332103,2623.9,2623.4,2.28706]
[1724301422403,1.40332103,2623.9,2623.2,4.57446]
[1724301422404,2.3213,2623.6,2623.2,4.57446]
[1724301422768,2.3213,2623.6,2623.5,2.28702]
[1724301423248,2.71918382,2623.6,2623.5,2.28702]
[1724301424414,2.71918382,2623.6,2623.4,2.2871]
[1724301424615,2.71918382,2623.6,2623.4,4.57415]
[1724301424833,2.3213,2623.6,2623.4,4.57415]
[1724301425143,2.3213,2623.6,2623.5,2.28702]
[1724301425617,2.3213,2623.6,2623.4,2.28705]
[1724301425956,3.0,2624.3,2623.4,2.28705]
[1724301425957,2.4258,2624.2,2623.7,2.28678]
[1724301426321,1.308,2624.1,2623.7,2.28678]
[1724301426711,2.4258,2624.0,2623.7,2.28678]
[1724301427064,2.4258,2624.0,2623.6,2.28686]
[1724301427217,2.4258,2624.0,2623.7,2.28683]
[1724301427425,2.90913004,2624.0,2623.7,2.28683]
[1724301428804,2.90913004,2624.0,2623.5,2.28695]
[1724301429153,2.4134,2623.8,2623.5,2.28695]
[1724301429653,2.4134,2623.8,2623.6,2.28688]